bitfinex-derivatives/quotes_BTCF0:USTF0_20250711
["timestamp","ask_amount","ask_price","bid_price","bid_amount"]
[1752193854435,0.00660001,115480.0,115470.0,0.6173464]
[1752193854637,0.012,115480.0,115470.0,0.6183464]
[1752193854938,0.012,115480.0,115470.0,0.9791464]
[1752193855231,0.0484001,115490.0,115480.0,0.211886]
[1752193855434,0.0484001,115490.0,115480.0,1.2576715]
[1752193856534,0.0484001,115490.0,115480.0,1.2596715]
[1752193857024,0.0484001,115490.0,115480.0,1.2626715]
[1752193858135,0.0484001,115490.0,115480.0,1.2631515]
[1752193858435,0.0484001,115490.0,115480.0,1.2661515]
[1752193858827,0.0484001,115490.0,115480.0,1.2691515]
[1752193859439,0.0484001,115490.0,115480.0,1.6299515]
[1752193859735,0.4959568,115510.0,115500.0,0.180306]
[1752193859930,0.49655681,115510.0,115500.0,0.5287115]
[1752193860136,0.49655681,115510.0,115500.0,0.00044]
[1752193860336,0.04129,115500.0,115480.0,0.257143]
[1752193860637,0.4639568,115490.0,115480.0,0.8125929]
[1752193860829,0.46789001,115490.0,115480.0,0.18632473]
[1752193861138,0.46789001,115490.0,115480.0,0.82032473]
[1752193861330,0.64104101,115490.0,115480.0,0.64769183]
[1752193861535,1.05131331,115490.0,115480.0,0.00925183]
[1752193861724,1.05131331,115490.0,115480.0,0.00873183]
[1752193861930,1.05131331,115490.0,115480.0,0.00373183]
[1752193862132,0.98944651,115490.0,115480.0,0.00373183]
[1752193862334,1.06678001,115490.0,115480.0,0.00373183]
[1752193862642,0.04129,115480.0,115470.0,0.17331064]
[1752193862835,0.70217595,115480.0,115470.0,0.17331064]
[1752193863030,1.97141596,115480.0,115470.0,0.17331064]
[1752193863833,1.90979591,115480.0,115470.0,0.17331064]
[1752193864236,1.73663001,115480.0,115470.0,0.17331064]
[1752193864842,1.73663001,115480.0,115470.0,0.52171614]
[1752193865044,0.46795001,115480.0,115470.0,0.17375064]
[1752193865240,0.46795001,115480.0,115470.0,0.17331064]
[1752193865636,0.54528351,115480.0,115470.0,0.17331064]
[1752193866240,0.54528351,115480.0,115470.0,0.52171614]
[1752193866536,0.54528351,115480.0,115470.0,0.52215614]
[1752193866736,0.07435001,115480.0,115470.0,0.53305614]
[1752193866936,0.10298067,115480.0,115470.0,1.16737614]
[1752193867247,0.10298067,115480.0,115470.0,1.23237614]
[1752193867543,0.06169067,115480.0,115470.0,1.59317614]
[1752193867730,0.05074067,115480.0,115470.0,1.76637614]
[1752193868138,0.002,115490.0,115480.0,0.1731659]
[1752193868342,0.002,115490.0,115480.0,0.5855714]
[1752193868543,0.04329,115490.0,115480.0,0.5215714]
[1752193868745,0.07489,115490.0,115480.0,1.1558514]
[1752193868938,0.10659,115490.0,115480.0,1.1558514]
[1752193869138,0.10659,115490.0,115480.0,1.1872514]
[1752193869340,0.10659,115490.0,115480.0,0.8074459]
[1752193869540,0.10659,115490.0,115480.0,1.1578514]
[1752193870136,0.002,115490.0,115480.0,1.5500514]
[1752193870348,0.002,115490.0,115480.0,1.5817514]
[1752193870540,0.002,115490.0,115480.0,1.7549354]
[1752193871739,0.002,115490.0,115480.0,1.7569354]
[1752193872047,0.002,115490.0,115480.0,1.7589354]
[1752193872246,0.002,115490.0,115480.0,1.47842703]
[1752193872438,0.002,115490.0,115480.0,1.65752853]
[1752193872641,0.002,115490.0,115480.0,1.5876314]
[1752193872840,0.002,115490.0,115480.0,1.5836314]
[1752193873133,0.07509,115490.0,115480.0,1.5900714]
[1752193873336,0.07509,115490.0,115480.0,1.5573714]
[1752193873537,0.002,115490.0,115480.0,1.5573714]
[1752193873734,0.002,115490.0,115480.0,1.7630554]
[1752193874847,0.04329,115490.0,115480.0,0.9557114]
[1752193875049,0.04329,115490.0,115480.0,0.8918114]
[1752193875350,0.10659,115490.0,115480.0,1.5258914]
[1752193875741,0.10659,115490.0,115480.0,1.5248914]
[1752193876145,0.002,115490.0,115480.0,1.5577914]
[1752193876340,0.002,115490.0,115480.0,1.5877914]
[1752193876645,0.07299,115510.0,115500.0,0.1731359]
[1752193876837,0.10515001,115510.0,115500.0,1.1555814]
[1752193877036,0.0316,115510.0,115500.0,1.1560214]
[1752193877241,0.0316,115510.0,115500.0,1.2189214]
[1752193877441,0.0316,115510.0,115500.0,1.5797214]
[1752193877643,0.07289,115510.0,115500.0,1.5797214]
[1752193879853,0.07289,115510.0,115500.0,1.5827214]
[1752193880354,0.11915069,115510.0,115500.0,1.1712959]
[1752193880545,0.15225069,115510.0,115500.0,1.1712959]
[1752193880853,0.15225069,115510.0,115500.0,1.1589014]
[1752193882355,0.10599,115510.0,115500.0,1.1599014]
[1752193883244,0.10599,115510.0,115500.0,0.8114959]
[1752193883445,0.10599,115510.0,115500.0,1.1599014]
[1752193883641,0.10599,115510.0,115500.0,0.1775759]
[1752193883840,0.10599,115510.0,115500.0,0.004]
[1752193883841,0.9883164,115510.0,115500.0,0.004]
[1752193884242,0.86145619,115510.0,115500.0,0.004]
[1752193884448,0.51305069,115510.0,115500.0,0.1771359]
[1752193885352,0.46679,115510.0,115500.0,0.1771359]
[1752193885747,0.46679,115510.0,115500.0,0.5255414]
[1752193886755,0.46679,115510.0,115500.0,0.1771359]
[1752193887748,0.46679,115510.0,115500.0,0.5255414]
[1752193887949,0.07289,115510.0,115500.0,0.5255414]
[1752193888150,0.07289,115510.0,115500.0,0.5912814]
[1752193888852,0.44665069,115530.0,115520.0,0.173106]
[1752193889060,0.1474107,115530.0,115520.0,0.5215115]
[1752193889246,0.10059,115530.0,115520.0,0.5219515]
[1752193889849,0.46139,115530.0,115520.0,0.5219515]
[1752193890156,0.46195001,115530.0,115520.0,0.5219515]
[1752193890454,0.40095001,115530.0,115520.0,0.5219515]
[1752193890648,0.40095001,115530.0,115520.0,0.5547515]
[1752193890951,0.10385001,115530.0,115520.0,0.5547515]
[1752193891262,0.10329,115530.0,115520.0,0.5557515]
[1752193891755,0.10229,115530.0,115520.0,0.5229515]
[1752193892851,0.07209,115530.0,115520.0,0.5229515]
[1752193893056,0.0345,115530.0,115520.0,0.5866515]
[1752193893448,0.003,115530.0,115520.0,0.60018405]
[1752193893655,0.003,115530.0,115520.0,0.96098405]
[1752193894255,0.003,115530.0,115520.0,1.5812115]
[1752193894556,0.003,115530.0,115520.0,0.9474515]
[1752193894756,0.04059,115530.0,115520.0,0.9474515]
[1752193895062,0.10269,115530.0,115520.0,0.5229515]
[1752193895352,0.10269,115530.0,115520.0,1.1566315]
[1752193895947,0.0337,115530.0,115520.0,1.53096433]
[1752193896158,0.0337,115530.0,115520.0,1.23466433]
[1752193896551,0.07129,115530.0,115520.0,1.23466433]
[1752193896856,0.07129,115530.0,115520.0,1.59546433]
[1752193897358,0.003,115530.0,115520.0,1.59546433]
[1752193897957,0.003,115530.0,115520.0,1.59546373]
[1752193898553,0.0324,115540.0,115530.0,0.1730911]
[1752193898852,0.3608,115550.0,115530.0,0.1730911]
[1752193898853,0.43059,115550.0,115540.0,0.1730761]
[1752193899158,0.48846,115550.0,115540.0,1.1551216]
[1752193899344,0.46119,115550.0,115540.0,1.1551216]
[1752193899548,0.48846,115550.0,115540.0,0.8067161]
[1752193899749,0.12766,115550.0,115540.0,1.1551216]
[1752193900059,0.12766,115550.0,115540.0,1.1521216]
[1752193900256,0.12766,115550.0,115540.0,1.1511216]
[1752193900457,0.13266,115550.0,115540.0,1.1511216]
[1752193900649,0.13266,115550.0,115540.0,1.1510416]
[1752193901056,0.13566,115550.0,115540.0,0.8026361]
[1752193901758,0.49646,115550.0,115540.0,1.1510416]
[1752193902948,0.0386,115550.0,115540.0,1.1510416]
[1752193903158,0.08486069,115550.0,115540.0,1.2144216]
[1752193903357,0.08486069,115550.0,115540.0,0.5808616]
[1752193903565,0.08486069,115550.0,115540.0,1.2144216]
[1752193903566,0.12245069,115550.0,115540.0,1.2144216]
[1752193904163,0.10346,115550.0,115540.0,1.2144216]
[1752193904353,0.13646,115550.0,115540.0,1.2144216]
[1752193904750,0.18272069,115550.0,115540.0,1.2144216]
[1752193905153,0.13646,115550.0,115540.0,1.2144216]
[1752193905449,0.0386,115550.0,115540.0,1.2144216]
[1752193905649,0.008,115550.0,115540.0,1.5752216]
[1752193906052,0.07286,115550.0,115540.0,1.7973961]
[1752193906258,0.54402069,115550.0,115540.0,1.45309653]
[1752193906558,0.49832001,115550.0,115540.0,1.45309653]
[1752193907162,0.49832001,115550.0,115540.0,1.80150203]
[1752193907860,0.49832001,115550.0,115540.0,1.45309653]
[1752193908066,0.49832001,115550.0,115540.0,1.80150203]
[1752193908659,0.04166001,115550.0,115540.0,1.81389653]
[1752193908964,0.008,115550.0,115540.0,2.22270203]
[1752193909752,0.008,115550.0,115540.0,3.41994203]
[1752193910249,0.04826069,115570.0,115560.0,0.1730461]
[1752193910462,0.04826069,115570.0,115560.0,0.90014734]
[1752193910665,0.04826069,115570.0,115560.0,0.96054734]
[1752193911058,0.04826069,115570.0,115560.0,0.62097802]
[1752193911256,0.04826069,115570.0,115560.0,0.96938352]
[1752193911462,0.05326069,115570.0,115560.0,0.96938352]
[1752193911860,0.09428069,115570.0,115560.0,0.19977802]
[1752193912057,0.15808069,115570.0,115560.0,0.53934734]
[1752193912460,0.11182,115570.0,115560.0,0.53934734]
[1752193912861,0.11182,115570.0,115560.0,0.90014734]
[1752193913061,0.11582,115570.0,115560.0,0.90058734]
[1752193913259,0.08372,115570.0,115560.0,0.90058734]
[1752193913465,0.34679305,115590.0,115580.0,0.1730161]
[1752193913658,0.34735306,115590.0,115580.0,1.45255505]
[1752193913861,0.34679305,115590.0,115580.0,1.80144055]
[1752193914166,0.34679305,115590.0,115580.0,1.84120055]
[1752193914167,0.30167,115590.0,115580.0,1.84120055]
[1752193914557,0.30167,115590.0,115580.0,1.49279505]
[1752193914756,0.30167,115590.0,115580.0,1.80144055]
[1752193915463,0.34269,115590.0,115580.0,1.45303505]
[1752193915660,0.34269,115590.0,115580.0,1.80144055]
[1752193916466,0.34269,115590.0,115580.0,1.45303505]
[1752193916768,0.40449,115590.0,115580.0,1.45303505]
[1752193916970,0.40505001,115590.0,115580.0,0.19656505]
[1752193917259,0.40505001,115590.0,115570.0,0.16965674]
[1752193917260,0.88543661,115590.0,115570.0,0.21640684]
[1752193917460,0.12837,115580.0,115570.0,0.24385684]
[1752193917665,0.48917,115580.0,115570.0,0.88493684]
[1752193917969,0.66278611,115580.0,115570.0,0.81500074]
[1752193918266,1.01119161,115580.0,115570.0,0.81508074]
[1752193918668,1.01119161,115580.0,115570.0,0.17364074]
[1752193918860,1.01119161,115580.0,115570.0,0.00012974]
[1752193919168,1.18423961,115580.0,115570.0,0.00312974]
[1752193920266,1.18423961,115580.0,115570.0,0.00512974]
[1752193921063,0.198081,115570.0,115560.0,0.19266107]
[1752193921258,1.0100065,115570.0,115560.0,0.19266107]
[1752193921465,1.69737765,115570.0,115560.0,0.19266107]
[1752193921660,1.69737765,115570.0,115560.0,0.17476533]
[1752193922176,1.69737765,115570.0,115560.0,0.17676533]
[1752193922471,1.6510065,115570.0,115560.0,0.17676533]
[1752193922667,1.37988625,115570.0,115560.0,0.17676533]
[1752193922861,1.72829175,115570.0,115560.0,0.17676533]
[1752193923056,0.73888625,115570.0,115560.0,0.17676533]
[1752193923262,1.38016626,115570.0,115560.0,0.17976533]
[1752193923564,0.56641526,115570.0,115560.0,0.17976533]
[1752193924369,0.73944626,115570.0,115560.0,0.20721533]
[1752193924569,0.73944626,115570.0,115560.0,0.17976533]
[1752193924769,0.66216101,115570.0,115560.0,0.17976533]
[1752193925558,0.56649603,115570.0,115560.0,0.20721533]
[1752193925772,0.56649603,115570.0,115560.0,0.59538083]
[1752193925969,0.56649603,115570.0,115560.0,0.59586083]
[1752193926161,0.56649603,115570.0,115560.0,0.98726083]
[1752193926162,0.17459603,115570.0,115560.0,0.98726083]
[1752193926367,0.07736602,115570.0,115560.0,1.01806083]
[1752193926569,0.17376576,115580.0,115570.0,0.2004806]
[1752193926769,0.17378041,115580.0,115570.0,1.2622861]
[1752193926961,0.17378041,115580.0,115570.0,1.2935661]
[1752193927372,0.14358041,115580.0,115570.0,1.2935661]
[1752193927565,0.02517974,115580.0,115570.0,1.2935661]
[1752193927974,0.00012974,115580.0,115570.0,1.6543661]
[1752193928373,0.02517974,115580.0,115570.0,1.6543661]
[1752193928568,0.06619974,115580.0,115570.0,1.6543661]
[1752193928871,0.06619974,115580.0,115570.0,1.2945661]
[1752193929270,0.06619974,115580.0,115570.0,1.2935661]
[1752193929271,0.14358428,115580.0,115570.0,1.2935661]
[1752193929470,0.14358428,115580.0,115570.0,1.2965661]
[1752193929774,0.14358428,115580.0,115570.0,1.6573661]
[1752193929971,0.14358428,115580.0,115570.0,1.6593661]
[1752193930172,0.14358428,115580.0,115570.0,1.3109606]
[1752193930373,0.14358428,115580.0,115570.0,1.6593661]
[1752193931366,0.10256428,115580.0,115570.0,1.6593661]
[1752193931567,0.07751428,115580.0,115570.0,1.6593661]
[1752193931768,0.06205137,115580.0,115570.0,1.6593661]
[1752193932477,0.00012974,115580.0,115570.0,1.6593661]
[1752193932865,0.00012974,115580.0,115570.0,1.3109606]
[1752193933075,0.00012974,115580.0,115570.0,1.6593661]
[1752193933676,0.42699974,115580.0,115570.0,0.2059606]
[1752193933875,0.49059974,115580.0,115570.0,0.8447206]
[1752193934271,0.49059974,115580.0,115570.0,0.67153]
[1752193934679,0.49059974,115580.0,115570.0,0.8445606]
[1752193935163,0.49059974,115580.0,115570.0,1.1928061]
[1752193935363,0.49059974,115580.0,115570.0,1.2325661]
[1752193935764,0.49059974,115580.0,115570.0,1.2656661]
[1752193935969,0.12979974,115580.0,115570.0,1.2656661]
[1752193936780,0.09789974,115580.0,115570.0,1.2656661]
[1752193936979,0.09789974,115580.0,115570.0,1.2958661]
[1752193938273,0.09789974,115580.0,115570.0,1.2963061]
[1752193938975,0.45869974,115580.0,115570.0,1.2963061]
[1752193939176,0.49009975,115580.0,115570.0,1.2963061]
[1752193939380,0.49009975,115580.0,115570.0,1.2661061]
[1752193939679,0.12929975,115580.0,115570.0,1.2661061]
[1752193939979,0.09789974,115580.0,115570.0,1.2661061]
[1752193940184,0.09789974,115580.0,115570.0,1.2968061]
[1752193940769,0.09789974,115580.0,115570.0,0.3094806]
[1752193940975,0.48949974,115580.0,115570.0,0.8832006]
[1752193941175,0.48949974,115580.0,115570.0,0.8837606]
[1752193941376,0.12925975,115580.0,115570.0,0.8837606]
[1752193941578,0.12925975,115580.0,115570.0,1.2632661]
[1752193941579,0.09789974,115580.0,115570.0,1.2632661]
[1752193941969,0.09789974,115580.0,115570.0,1.2946661]
[1752193942777,0.06619974,115580.0,115570.0,1.2946661]
[1752193944582,0.00012974,115580.0,115570.0,0.9462606]
[1752193944781,0.06571974,115580.0,115570.0,1.2946661]
[1752193946677,0.06571974,115580.0,115570.0,1.2938261]
[1752193946878,0.06571974,115580.0,115570.0,0.9140206]
[1752193947185,0.12951974,115580.0,115570.0,0.9140206]
[1752193947376,0.09671974,115580.0,115570.0,0.9140206]
[1752193947683,0.06571974,115580.0,115570.0,1.2940261]
[1752193948378,0.00012974,115580.0,115570.0,0.9456206]
[1752193948580,0.42651974,115580.0,115570.0,0.9137806]
[1752193948785,0.06571974,115580.0,115570.0,1.2329561]
[1752193948973,0.00012974,115580.0,115570.0,1.2948561]
[1752193949378,0.00012974,115580.0,115570.0,1.6556561]
[1752193949779,0.42839,115600.0,115590.0,0.1997508]
[1752193950083,0.42839,115600.0,115590.0,1.2276263]
[1752193950286,0.06759,115600.0,115590.0,1.2895263]
[1752193950586,0.002,115600.0,115590.0,1.2895263]
[1752193950788,0.002,115600.0,115590.0,1.29823407]
[1752193951081,0.04667,115600.0,115590.0,1.29823407]
[1752193952084,0.04367,115600.0,115590.0,1.29823407]
[1752193952503,0.09009703,115600.0,115590.0,1.29823407]
[1752193952882,0.09009703,115600.0,115590.0,0.66039407]
[1752193953085,0.08909703,115600.0,115590.0,0.6531263]
[1752193954081,0.11401703,115600.0,115590.0,0.6531263]
[1752193954283,0.14621703,115600.0,115590.0,0.70746]
[1752193954482,0.17711703,115600.0,115590.0,0.8804608]
[1752193955077,1.05930833,115600.0,115590.0,0.66547]
[1752193955286,1.05986834,115600.0,115590.0,0.2011908]
[1752193955485,0.53847704,115600.0,115590.0,0.2007508]
[1752193956790,0.49205001,115600.0,115590.0,0.2007508]
[1752193957183,0.49205001,115600.0,115590.0,0.2423808]
[1752193957389,0.49205001,115600.0,115590.0,0.2007508]
[1752193959489,0.49205001,115600.0,115590.0,0.001]
[1752193959490,1.18645731,115600.0,115590.0,0.001]
[1752193959795,1.43645731,115600.0,115590.0,0.001]
[1752193960490,0.2386207,115570.0,115560.0,0.04667547]
[1752193960694,1.9451462,115570.0,115560.0,0.19297117]
[1752193960886,2.0060462,115570.0,115560.0,0.19297097]
[1752193961087,2.0060462,115570.0,115560.0,0.04322011]
[1752193961287,2.0060462,115570.0,115560.0,0.01992547]
[1752193961595,2.4291102,115570.0,115560.0,0.01992547]
[1752193961791,2.47560415,115570.0,115560.0,0.01992547]
[1752193962094,2.47560415,115570.0,115560.0,0.02292547]
[1752193962298,2.22560415,115570.0,115560.0,0.02292547]
[1752193962992,2.23426997,115570.0,115560.0,0.02292547]
[1752193963189,2.18833603,115570.0,115560.0,0.02492547]
[1752193963396,2.18833603,115570.0,115560.0,0.19797097]
[1752193964192,2.18833603,115570.0,115560.0,0.02492547]
[1752193964395,0.06559,115530.0,115520.0,0.11338563]
[1752193964695,0.42639,115530.0,115520.0,0.43674163]
[1752193964893,0.42695001,115530.0,115520.0,0.31957633]
[1752193965088,0.49045001,115530.0,115520.0,0.28813633]
[1752193965691,0.49045001,115530.0,115520.0,0.29013633]
[1752193966185,0.66354041,115530.0,115520.0,0.29013633]
[1752193966390,0.66354041,115530.0,115520.0,0.20358663]
[1752193966697,0.49045001,115530.0,115520.0,0.20358663]
[1752193966895,0.66354041,115530.0,115520.0,0.20358663]
[1752193967784,0.49145001,115530.0,115520.0,0.20358663]
[1752193968192,0.66454041,115530.0,115520.0,0.20358663]
[1752193968400,0.66454041,115530.0,115520.0,0.22690227]
[1752193968603,0.66454041,115530.0,115520.0,0.05379687]
[1752193969302,1.54686591,115530.0,115520.0,0.02704687]
[1752193969599,1.54686591,115530.0,115520.0,0.00373123]
[1752193969794,1.19846041,115530.0,115520.0,0.00373123]
[1752193969992,1.54686591,115530.0,115520.0,0.00373123]
[1752193970188,1.54686591,115530.0,115520.0,0.17683643]
[1752193970189,1.19846021,115530.0,115520.0,0.17683643]
[1752193970402,0.85225001,115530.0,115520.0,0.20358643]
[1752193970808,0.85225001,115530.0,115520.0,0.24521643]
[1752193971009,0.85225001,115530.0,115520.0,0.26853207]
[1752193971213,0.81955001,115530.0,115520.0,0.27781643]
[1752193972617,1.45635001,115530.0,115520.0,0.27781643]
[1752193974118,0.81955001,115530.0,115520.0,0.27781643]
[1752193974319,0.81955001,115530.0,115520.0,0.62622193]
[1752193974509,0.78875001,115530.0,115520.0,0.65752193]
[1752193974706,0.00156001,115530.0,115520.0,0.65752193]
[1752193975006,0.001,115530.0,115520.0,1.65440193]
[1752193975715,0.001,115530.0,115520.0,1.32931207]
[1752193975915,0.001,115530.0,115520.0,1.67771757]
[1752193977318,0.001,115530.0,115520.0,1.65440193]
[1752193978013,0.001,115530.0,115520.0,1.65484193]
[1752193979715,0.00012974,115540.0,115530.0,0.2376102]
[1752193979911,0.00012974,115540.0,115530.0,1.0108157]
[1752193980111,0.00012974,115540.0,115530.0,1.0112557]
[1752193981518,0.01666234,115550.0,115540.0,0.1996353]
[1752193981713,0.01666234,115550.0,115540.0,1.6470408]
[1752193981912,0.01666234,115550.0,115540.0,1.6474808]
[1752193982817,0.23237448,115570.0,115560.0,0.1730453]
[1752193983024,0.1624525,115570.0,115560.0,0.5859708]
[1752193983220,0.1624525,115570.0,115560.0,1.2530908]
[1752193983523,0.4902525,115570.0,115560.0,1.2530908]
[1752193983714,0.4902525,115570.0,115560.0,1.2860908]
[1752193988231,0.52355251,115570.0,115560.0,1.2865708]
[1752193988527,0.52355251,115570.0,115560.0,0.8345253]
[1752193988723,0.52355251,115570.0,115560.0,0.8724853]
[1752193989026,0.52355251,115570.0,115560.0,0.9330853]
[1752193989228,0.47714235,115570.0,115560.0,0.9330853]
[1752193989724,0.47714235,115570.0,115560.0,0.2986453]
[1752193989921,0.50804235,115570.0,115560.0,0.2981653]
[1752193990323,0.50804235,115570.0,115560.0,0.2676653]
[1752193990526,0.51004235,115570.0,115560.0,0.1996053]
[1752193990723,1.07473655,115570.0,115550.0,0.25439974]
[1752193990921,0.49849273,115560.0,115550.0,0.95862424]
[1752193991118,0.49849273,115560.0,115550.0,0.95910424]
[1752193991119,0.53740274,115560.0,115550.0,0.95910424]
[1752193991424,0.53740274,115560.0,115550.0,0.91583974]
[1752193991623,0.53740274,115560.0,115550.0,0.87787974]
[1752193992222,0.14420274,115560.0,115550.0,1.26424524]
[1752193992420,0.47160273,115560.0,115550.0,1.32774524]
[1752193992622,0.47220274,115560.0,115550.0,1.32774524]
[1752193994229,0.50510274,115560.0,115550.0,1.32774524]
[1752193995122,0.50510274,115560.0,115550.0,0.69334524]
[1752193995321,0.50510274,115560.0,115550.0,0.09732974]
[1752193995632,0.50510274,115560.0,115550.0,0.19974994]
[1752193995830,0.53700274,115560.0,115550.0,0.87210994]
[1752193996630,0.50510274,115560.0,115550.0,1.22051544]
[1752193996830,0.50510274,115560.0,115550.0,1.28221544]
[1752193997023,0.50510274,115560.0,115550.0,0.93380994]
[1752193997223,0.50510274,115560.0,115550.0,1.28221544]
[1752193999823,0.50510274,115560.0,115550.0,1.28217544]
[1752194001326,0.07992274,115560.0,115550.0,1.64297544]
[1752194001526,0.07992274,115560.0,115550.0,1.99138094]
[1752194001527,0.04642273,115560.0,115550.0,1.99138094]
[1752194002227,0.00290273,115560.0,115550.0,2.16446093]
[1752194002635,0.01866234,115570.0,115560.0,0.1730452]
[1752194002837,0.01866234,115570.0,115560.0,1.04064122]
[1752194003034,0.01866234,115570.0,115560.0,0.68028122]
[1752194003426,0.08407234,115570.0,115560.0,1.09215321]
[1752194003630,0.08407234,115570.0,115560.0,0.45783321]
[1752194003831,0.44487234,115570.0,115560.0,0.8078052]
[1752194004032,0.50983235,115570.0,115560.0,0.8078052]
[1752194004229,0.50983235,115570.0,115560.0,1.03325321]
[1752194004435,0.50983235,115570.0,115560.0,1.03525321]
[1752194004837,0.50983235,115570.0,115560.0,1.16047336]
[1752194005330,0.47763235,115570.0,115560.0,1.19087336]
[1752194005536,0.38002235,115570.0,115560.0,1.19087336]
[1752194005738,0.38002235,115570.0,115560.0,1.22317336]
[1752194005938,0.01922235,115570.0,115560.0,1.22317336]
[1752194006137,0.01866234,115570.0,115560.0,1.22317336]
[1752194006740,0.01866234,115570.0,115560.0,1.58397336]
[1752194007441,0.01866234,115570.0,115560.0,1.60069475]
[1752194007643,0.01766296,115570.0,115560.0,1.60069475]
[1752194007941,0.002,115570.0,115560.0,1.60069475]
[1752194008143,0.46250021,115590.0,115580.0,0.1730153]
[1752194008342,0.49009021,115600.0,115590.0,0.1730003]
[1752194008531,0.49009021,115600.0,115590.0,0.2058003]
[1752194008737,0.55289021,115600.0,115590.0,0.52066846]
[1752194009242,0.55289021,115600.0,115590.0,0.8072403]
[1752194010536,0.72587561,115600.0,115590.0,0.8072403]
[1752194010742,0.72587561,115600.0,115590.0,0.1730003]
[1752194011342,0.55289021,115600.0,115590.0,0.1730003]
[1752194011741,0.55292943,115600.0,115590.0,0.1730003]
[1752194012439,0.72591483,115600.0,115590.0,0.1730003]
[1752194012646,0.49101,115600.0,115590.0,0.1730003]
[1752194013040,0.49161001,115600.0,115590.0,0.1730003]
[1752194014348,0.59990038,115600.0,115590.0,0.1730003]
[1752194015147,0.77288578,115600.0,115590.0,0.1730003]
[1752194016043,0.66459541,115600.0,115590.0,0.1730003]
[1752194017145,1.12573001,115600.0,115590.0,0.1730003]
[1752194018044,0.56896915,115600.0,115590.0,0.52066846]
[1752194018249,0.74195455,115600.0,115590.0,0.1730003]
[1752194018660,0.66459541,115600.0,115590.0,0.1730003]
[1752194019153,0.49161001,115600.0,115590.0,0.1730003]
[1752194020650,0.56896204,115600.0,115590.0,0.1730003]
[1752194021052,0.49161001,115600.0,115590.0,0.1730003]
[1752194021548,0.49161001,115600.0,115590.0,0.52066846]
[1752194021956,0.57096717,115600.0,115590.0,0.52066846]
[1752194022157,0.57196717,115600.0,115590.0,0.52066846]
[1752194022349,0.57196717,115600.0,115590.0,0.1730003]
[1752194022654,0.55649854,115600.0,115590.0,0.1730003]
[1752194023855,0.49461001,115600.0,115590.0,0.1730003]
[1752194024455,0.66759541,115600.0,115590.0,0.1730003]
[1752194024754,0.49461001,115600.0,115590.0,0.1730003]
[1752194025055,0.66659541,115600.0,115590.0,0.1730003]
[1752194025254,0.49461001,115600.0,115590.0,0.1730003]
[1752194025454,0.66759541,115600.0,115590.0,0.1730003]
[1752194025654,0.49461001,115600.0,115590.0,0.1730003]
[1752194026759,0.66759541,115600.0,115590.0,0.1730003]
[1752194026955,0.66759541,115600.0,115590.0,0.39542598]
[1752194027456,0.66759541,115600.0,115590.0,0.1730003]
[1752194027659,0.49461001,115600.0,115590.0,0.1730003]
[1752194028552,0.49461001,115600.0,115590.0,0.39542598]
[1752194028751,0.49461001,115600.0,115590.0,0.42702598]
[1752194029161,0.49461001,115600.0,115590.0,0.39542598]
[1752194033764,0.46461001,115600.0,115590.0,0.42802598]
[1752194033953,0.46461001,115600.0,115590.0,0.45962598]
[1752194035162,0.43181001,115600.0,115590.0,0.45962598]
[1752194035554,0.43181001,115600.0,115590.0,0.68205166]
[1752194035754,0.42981001,115600.0,115590.0,0.68205166]
[1752194036155,0.42881001,115600.0,115590.0,0.68205166]
[1752194036461,0.42881001,115600.0,115590.0,0.46823878]
[1752194037263,0.4753125,115600.0,115590.0,0.46823878]
[1752194038459,0.4753125,115600.0,115590.0,0.69066446]
[1752194039663,0.06801001,115600.0,115590.0,0.69066446]
[1752194039964,0.06741,115600.0,115590.0,0.69066446]
[1752194040162,0.06741,115600.0,115590.0,0.69166446]
[1752194040365,0.002,115600.0,115590.0,1.05246446]
[1752194040561,0.06734,115610.0,115600.0,0.1729857]
[1752194040756,0.47140249,115630.0,115610.0,0.1297218]
[1752194040757,0.40730249,115630.0,115610.0,0.1297218]
[1752194040959,0.04650249,115640.0,115630.0,0.1729408]
[1752194041158,0.04850249,115650.0,115640.0,0.1729258]
[1752194041358,0.002,115650.0,115640.0,1.61225716]
[1752194041559,0.002,115650.0,115640.0,1.67585716]
[1752194041958,0.002,115650.0,115640.0,1.68937531]
[1752194042159,0.002,115650.0,115640.0,1.05569531]
[1752194042365,0.06734,115650.0,115640.0,0.8701658]
[1752194042567,0.06734,115650.0,115640.0,1.06119148]
[1752194042757,0.06734,115650.0,115640.0,0.2051258]
[1752194042758,0.10074,115650.0,115640.0,0.2051258]
[1752194042964,0.46154,115650.0,115640.0,1.18398482]
[1752194043165,0.46214001,115650.0,115640.0,1.19325275]
[1752194043360,0.45914001,115650.0,115640.0,0.55961275]
[1752194043561,0.45914001,115650.0,115640.0,1.19321275]
[1752194043758,0.45914001,115650.0,115640.0,1.18442482]
[1752194043965,0.45914001,115650.0,115640.0,1.54522482]
[1752194043966,0.06794001,115650.0,115640.0,1.54522482]
[1752194044268,0.06734,115650.0,115640.0,1.57682482]
[1752194045360,0.06734,115650.0,115640.0,1.21602482]
[1752194045659,0.06734,115650.0,115640.0,1.2296058]
[1752194045856,0.06734,115650.0,115640.0,1.21602482]
[1752194046158,0.06734,115650.0,115640.0,1.21594482]
[1752194046365,0.09974,115650.0,115640.0,1.57674482]
[1752194046561,0.09974,115650.0,115640.0,0.94322482]
[1752194046763,0.09974,115650.0,115640.0,1.57674482]
[1752194048566,0.06734,115650.0,115640.0,1.57674482]
[1752194048960,0.06734,115650.0,115640.0,0.94322482]
[1752194049168,0.06734,115650.0,115640.0,1.57662482]
[1752194049962,0.04208,115650.0,115640.0,1.57662482]
[1752194050171,0.002,115650.0,115640.0,1.57662482]
[1752194051560,0.05645205,115670.0,115660.0,0.172896]
[1752194051772,0.05645205,115670.0,115660.0,1.51427502]
[1752194052070,0.05645205,115670.0,115660.0,1.57727502]
[1752194052261,0.05645205,115670.0,115660.0,0.94391502]
[1752194052460,0.08171205,115670.0,115660.0,1.57723502]
[1752194052970,0.08671205,115670.0,115660.0,1.57723502]
[1752194053171,0.08671205,115670.0,115660.0,1.57767502]
[1752194053566,0.44751205,115670.0,115660.0,0.8066559]
[1752194053767,0.14857206,115670.0,115660.0,0.8066559]
[1752194053971,0.14801205,115670.0,115660.0,0.1733359]
[1752194054168,0.14801205,115670.0,115660.0,0.8061359]
[1752194054374,0.14801205,115670.0,115660.0,1.1673759]
[1752194054668,0.06145205,115670.0,115660.0,1.51459492]
[1752194054864,0.08671205,115670.0,115660.0,0.91355492]
[1752194055060,0.08671205,115670.0,115660.0,1.54679492]
[1752194055261,0.08671205,115670.0,115660.0,0.91355492]
[1752194055462,0.08671205,115670.0,115660.0,1.54679492]
[1752194055870,0.06145205,115670.0,115660.0,1.54679492]
[1752194056674,0.06145205,115670.0,115660.0,1.1995759]
[1752194056868,0.06145205,115670.0,115660.0,1.54679492]
[1752194057170,0.02137205,115670.0,115660.0,1.54679492]